fUSD/lending_fUSD_20260426
["ID","MTS","AMOUNT","RATE_DAILY","PERIOD"]
[421139911,1777156676302,5270.21219281,7.997e-05,2]
[421139912,1777156676344,4729.79780719,8.007e-05,2]
[421139913,1777156676366,1176.30523432,8.007e-05,2]
[421139914,1777156693896,-386.0,8.007e-05,3]
[421139915,1777156741144,300.0,8.006e-05,2]
[421139916,1777156741849,150.0,8.006e-05,2]
[421139917,1777156744067,300.0,8.006e-05,2]
[421139918,1777156745318,254.0,8.007e-05,2]
[421139919,1777156745625,500.0,8.006e-05,2]
[421139920,1777156745677,500.0,8.006e-05,2]
[421139921,1777156745783,535.33291061,8.006e-05,2]
[421139922,1777156747064,414.0,8.007e-05,3]
[421139923,1777156801178,300.0,8.006e-05,2]
[421139924,1777156801212,300.0,8.006e-05,2]
[421139925,1777156801247,1200.0,8.006e-05,2]
[421139926,1777156811639,393.0,8.007e-05,3]
[421139927,1777156818971,160.0,8.007e-05,3]
[421139928,1777156820580,254.0,8.007e-05,2]
[421139929,1777156867503,373.0,8.007e-05,3]
[421139930,1777156874795,3294.67708939,7.907e-05,2]
[421139931,1777156874818,1813.75361061,7.907e-05,2]
[421139932,1777156889227,3480.2,7.847e-05,2]
[421139933,1777156889531,214.198,7.847e-05,2]
[421139934,1777156895991,254.0,8.007e-05,2]
[421139935,1777156920980,300.0,8.006e-05,2]
[421139936,1777156921748,150.0,8.006e-05,2]
[421139937,1777156922579,300.0,8.006e-05,2]
[421139938,1777156926703,355.0,8.007e-05,3]
[421139939,1777156955190,171.0,8.007e-05,3]
[421139940,1777156971418,254.0,8.007e-05,2]
[421139941,1777156984558,337.0,8.007e-05,3]
[421139942,1777157046363,320.0,8.007e-05,3]
[421139943,1777157049227,8918.01,7.907e-05,2]
[421139944,1777157049251,10000.01,7.907e-05,2]
[421139945,1777157049276,7416.2036,7.907e-05,2]
[421139946,1777157083565,292.35676468,7.999e-05,2]
[421139947,1777157095209,200.0,7.8e-05,2]
[421139948,1777157098834,-500.0,7.9e-05,2]
[421139949,1777157101901,-800.0,8e-05,2]
[421139950,1777157101930,-300.0,8.006e-05,2]
[421139951,1777157101960,-1200.0,8.006e-05,2]
[421139952,1777157102117,-150.0,8.006e-05,2]
[421139953,1777157104902,-3165.1376,7.907e-05,2]
[421139954,1777157114807,150.0,7.2e-05,2]
[421139955,1777157114871,150.0,7.289e-05,2]
[421139956,1777157114944,150.0,7.378e-05,2]
[421139957,1777157115008,150.0,7.467e-05,2]
[421139958,1777157115081,150.0,7.556e-05,2]
[421139959,1777157115153,150.0,7.644e-05,2]
[421139960,1777157115221,150.0,7.733e-05,2]
[421139961,1777157115291,150.0,7.822e-05,2]
[421139962,1777157115784,150.0,7.911e-05,2]
[421139963,1777157118426,150.0,7.2e-05,2]
[421139964,1777157118492,150.0,7.36e-05,2]
[421139965,1777157118562,150.0,7.52e-05,2]
[421139966,1777157118631,150.0,7.68e-05,2]
[421139967,1777157118659,150.0,7.84e-05,2]
[421139968,1777157118837,150.0,7.2e-05,2]
[421139969,1777157118870,150.0,7.253e-05,2]
[421139970,1777157118966,150.0,7.307e-05,2]
[421139971,1777157119097,150.0,7.36e-05,2]
[421139972,1777157119135,150.0,7.413e-05,2]
[421139973,1777157119168,150.0,7.467e-05,2]
[421139974,1777157119222,150.0,7.52e-05,2]
[421139975,1777157119297,150.0,7.573e-05,2]
[421139976,1777157119360,150.0,7.627e-05,2]
[421139977,1777157119436,150.0,7.68e-05,2]
[421139978,1777157119508,150.0,7.733e-05,2]
[421139979,1777157119576,150.0,7.787e-05,2]
[421139980,1777157119644,150.0,7.84e-05,2]
[421139981,1777157119717,150.0,7.893e-05,2]
[421139982,1777157121713,150.0,7.2e-05,2]
[421139983,1777157121742,150.0,7.36e-05,2]
[421139984,1777157121806,150.0,7.52e-05,2]
[421139985,1777157121870,150.0,7.68e-05,2]
[421139986,1777157121944,150.0,7.84e-05,2]
[421139987,1777157123922,50.01,7.917e-05,2]
[421139988,1777157123943,2639.99,7.917e-05,2]
[421139989,1777157124419,150.0,7.2e-05,2]
[421139990,1777157124474,150.0,7.467e-05,2]
[421139991,1777157124547,150.0,7.733e-05,2]
[421139992,1777157124688,150.0,7.2e-05,2]
[421139993,1777157124718,150.0,7.244e-05,2]
[421139994,1777157124779,150.0,7.289e-05,2]
[421139995,1777157124847,150.0,7.333e-05,2]
[421139996,1777157124920,150.0,7.378e-05,2]
[421139997,1777157124992,150.0,7.422e-05,2]
[421139998,1777157125062,150.0,7.467e-05,2]
[421139999,1777157125132,150.0,7.511e-05,2]
[421140000,1777157125216,150.0,7.556e-05,2]
[421140001,1777157125274,150.0,7.6e-05,2]
[421140002,1777157125343,150.0,7.644e-05,2]
[421140003,1777157125411,150.0,7.689e-05,2]
[421140004,1777157125483,110.02,7.733e-05,2]
[421140005,1777157125505,39.98,7.733e-05,2]
[421140006,1777157125592,150.0,7.778e-05,2]
[421140007,1777157125706,150.0,7.822e-05,2]
[421140008,1777157125739,150.0,7.867e-05,2]
[421140009,1777157125768,150.0,7.911e-05,2]
[421140010,1777157128657,150.0,7.2e-05,2]
[421140011,1777157134839,150.0,7.2e-05,2]
[421140012,1777157134873,150.0,7.28e-05,2]
[421140013,1777157134911,150.0,7.36e-05,2]
[421140014,1777157134942,150.0,7.44e-05,2]
[421140015,1777157135054,150.0,7.52e-05,2]
[421140016,1777157135088,150.0,7.6e-05,2]
[421140017,1777157135125,150.0,7.68e-05,2]
[421140018,1777157135166,150.0,7.76e-05,2]
[421140019,1777157135203,150.0,7.84e-05,2]
[421140020,1777157136377,150.0,7.2e-05,2]
[421140021,1777157140301,150.0,7.2e-05,2]
[421140022,1777157140367,150.0,7.262e-05,2]
[421140023,1777157140435,150.0,7.323e-05,2]
[421140024,1777157140491,150.0,7.385e-05,2]
[421140025,1777157140529,150.0,7.446e-05,2]
[421140026,1777157140594,150.0,7.508e-05,2]
[421140027,1777157140669,150.0,7.569e-05,2]
[421140028,1777157140740,150.0,7.631e-05,2]
[421140029,1777157140810,150.0,7.692e-05,2]
[421140030,1777157140900,150.0,7.754e-05,2]
[421140031,1777157140951,150.0,7.815e-05,2]
[421140032,1777157141032,150.0,7.877e-05,2]
[421140033,1777157141254,150.0,7.2e-05,2]
[421140034,1777157141311,150.0,7.24e-05,2]
[421140035,1777157141382,150.0,7.28e-05,2]
[421140036,1777157141454,150.0,7.32e-05,2]
[421140037,1777157141524,150.0,7.36e-05,2]
[421140038,1777157141599,150.0,7.4e-05,2]
[421140039,1777157141678,150.0,7.44e-05,2]
[421140040,1777157141736,150.0,7.48e-05,2]
[421140041,1777157141806,150.0,7.52e-05,2]
[421140042,1777157141877,150.0,7.56e-05,2]
[421140043,1777157141927,-150.0,7.92e-05,2]
[421140044,1777157141991,150.0,7.6e-05,2]
[421140045,1777157142064,150.0,7.64e-05,2]
[421140046,1777157142099,150.0,7.68e-05,2]
[421140047,1777157142161,150.0,7.72e-05,2]
[421140048,1777157142240,150.0,7.76e-05,2]
[421140049,1777157142324,150.0,7.8e-05,2]
[421140050,1777157142378,150.0,7.84e-05,2]
[421140051,1777157142441,150.0,7.88e-05,2]
[421140052,1777157142511,150.0,7.92e-05,2]
[421140053,1777157245459,3200.0,7.8e-05,2]
[421140054,1777157248873,6400.0,7.9e-05,2]
[421140055,1777157307003,-150.0,7.938e-05,2]
[421140056,1777157307026,-250.0,7.943e-05,2]
[421140057,1777157307050,-150.0,7.947e-05,2]
[421140058,1777157307074,-150.0,7.956e-05,2]
[421140059,1777157307099,-150.0,7.96e-05,2]
[421140060,1777157307122,-300.0,7.999e-05,2]
[421140061,1777157307145,-150.0,8e-05,2]
[421140062,1777157307169,-150.0,8e-05,2]
[421140063,1777157307193,-150.0,8e-05,2]
[421140064,1777157307216,-150.0,8e-05,2]
[421140065,1777157307240,-150.0,8e-05,2]
[421140066,1777157307264,-151.519374,8e-05,2]
[421140067,1777157307291,-157.56180726,8e-05,2]
[421140068,1777157307314,-150.0,8e-05,2]
[421140069,1777157307337,-150.00000001,8e-05,2]
[421140070,1777157307362,-222.06899999,8e-05,2]
[421140071,1777157307385,-255.0,8e-05,2]
[421140072,1777157307409,-9600.0,8e-05,2]
[421140073,1777157307433,-150.0,8.005e-05,2]
[421140074,1777157307465,-500.0,8.006e-05,2]
[421140075,1777157307494,-500.0,8.006e-05,2]
[421140076,1777157307522,-500.0,8.006e-05,2]
[421140077,1777157307553,-500.0,8.006e-05,2]
[421140078,1777157307585,-500.0,8.006e-05,2]
[421140079,1777157307614,-500.0,8.006e-05,2]
[421140080,1777157307644,-500.0,8.006e-05,2]
[421140081,1777157307673,-500.0,8.006e-05,2]
[421140082,1777157307702,-500.0,8.006e-05,2]
[421140083,1777157307731,-500.0,8.006e-05,2]
[421140084,1777157307760,-243.61231571,8.006e-05,2]
[421140085,1777157307790,-500.0,8.006e-05,2]
[421140086,1777157307819,-500.0,8.006e-05,2]
[421140087,1777157307848,-500.0,8.006e-05,2]
[421140088,1777157307877,-500.0,8.006e-05,2]
[421140089,1777157307927,-500.0,8.006e-05,2]
[421140090,1777157307961,-500.0,8.006e-05,2]
[421140091,1777157307992,-500.0,8.006e-05,2]
[421140092,1777157308017,-612.40454141,8.006e-05,2]
[421140093,1777157308040,-500.0,8.006e-05,2]
[421140094,1777157308065,-490.12479523,8.006e-05,2]
[421140095,1777157308090,-500.0,8.006e-05,2]
[421140096,1777157308114,-160.0,8.007e-05,3]
[421140097,1777157308138,-172.0,8.007e-05,3]
[421140098,1777157308163,-334.0,8.007e-05,3]
[421140099,1777157308192,-10488.70816639,8.007e-05,2]
[421140100,1777157322573,5000.01,7.907e-05,2]
[421140101,1777157322599,5000.01,7.907e-05,2]
[421140102,1777157322625,5000.01,7.907e-05,2]
[421140103,1777157322652,5000.01,7.907e-05,2]
[421140104,1777157325898,-427.9744764,7.907e-05,2]
[421140105,1777157327878,-935.27401515,7.907e-05,2]
[421140106,1777157329987,-5000.01,7.907e-05,2]
[421140107,1777157330216,-5000.01,7.907e-05,2]
[421140108,1777157330367,-5000.01,7.907e-05,2]
[421140109,1777157330461,-5000.01,7.907e-05,2]
[421140110,1777157331714,-9755.76006784,7.907e-05,2]
[421140111,1777157334344,-200.0,7.907e-05,2]
[421140112,1777157334413,-10000.01,7.907e-05,2]
[421140113,1777157334554,-10000.01,7.907e-05,2]
[421140114,1777157334963,-10000.01,7.907e-05,2]
[421140115,1777157336211,-376.58147657,7.907e-05,2]
[421140116,1777157338779,-500.0,7.907e-05,2]
[421140117,1777157339760,-500.0,7.907e-05,2]
[421140118,1777157342885,-380.42207151,7.907e-05,2]
[421140119,1777157345523,-384.50497851,7.907e-05,2]
[421140120,1777157347783,-180.69662149,7.907e-05,2]
[421140121,1777157348768,331.0,7.907e-05,3]
[421140122,1777157350336,-216.62626128,7.907e-05,2]
[421140123,1777157351306,-500.00025668,7.907e-05,2]
[421140124,1777157354977,153.0,7.907e-05,3]
[421140125,1777157401377,300.0,7.906e-05,2]
[421140126,1777157401411,1200.0,7.906e-05,2]
[421140127,1777157410756,383.0,7.907e-05,3]
[421140128,1777157411325,160.0,7.907e-05,3]
[421140129,1777157412023,-13389.73647457,7.907e-05,2]
[421140130,1777157412051,-1010.26352543,7.907e-05,2]
[421140131,1777157423578,253.0,7.907e-05,2]
[421140135,1777157431901,-8989.74647457,7.907e-05,2]
[421140136,1777157431911,-900.1548,7.907e-05,2]
[421140137,1777157431921,-500.0,8.007e-05,2]
[421140138,1777157431931,-152.0,8.009e-05,7]
[421140139,1777157431940,-578.20924308,8.145e-05,2]
[421140140,1777157431950,-1328.27659266,8.145e-05,2]
[421140141,1777157431960,-670.58624095,8.145e-05,2]
[421140142,1777157431969,-42.80482206,8.145e-05,2]
[421140143,1777157431983,-264.78217793,8.145e-05,2]
[421140144,1777157431992,-174.61919141,8.145e-05,2]
[421140145,1777157432002,-151.0,8.145e-05,2]
[421140146,1777157432012,-156.587,8.145e-05,2]
[421140147,1777157432021,-196.37227449,8.145e-05,2]
[421140148,1777157432031,-228.59,8.154e-05,2]
[421140149,1777157432040,-133.04935617,8.178e-05,2]
[421140150,1777157432052,-2445.95087844,8.178e-05,2]
[421140151,1777157432077,-3615.92503439,8.178e-05,2]
[421140152,1777157432088,-284.71352936,8.218e-05,2]
[421140153,1777157432097,-1215.0,8.219e-05,2]
[421140154,1777157432107,-1215.0,8.219e-05,2]
[421140155,1777157432116,-749.0,8.219e-05,2]
[421140156,1777157432126,-400.79009424,8.219e-05,2]
[421140157,1777157432143,-814.20990576,8.219e-05,2]
[421140158,1777157432153,-749.0,8.219e-05,2]
[421140159,1777157432163,-1215.0,8.219e-05,2]
[421140161,1777157432173,-749.0,8.219e-05,2]
[421140163,1777157432183,-1215.0,8.219e-05,2]
[421140165,1777157432193,-749.0,8.219e-05,2]
[421140167,1777157432202,-1215.0,8.219e-05,2]
[421140169,1777157432212,-749.0,8.219e-05,2]
[421140171,1777157432222,-1215.0,8.219e-05,2]
[421140173,1777157432231,-749.0,8.219e-05,2]
[421140175,1777157432241,-650.23575933,8.219e-05,2]
[421140179,1777157432261,-564.76424067,8.219e-05,2]
[421140181,1777157432271,-749.0,8.219e-05,2]
[421140183,1777157432281,-1215.0,8.219e-05,2]
[421140185,1777157432290,-749.0,8.219e-05,2]
[421140186,1777157432300,-1215.0,8.219e-05,2]
[421140187,1777157432310,-749.0,8.219e-05,2]
[421140188,1777157432320,-1215.0,8.219e-05,2]
[421140189,1777157432330,-749.0,8.219e-05,2]
[421140190,1777157432340,-1215.0,8.219e-05,2]
[421140191,1777157432350,-749.0,8.219e-05,2]
[421140192,1777157432359,-1215.0,8.219e-05,2]
[421140193,1777157432369,-749.0,8.219e-05,2]
[421140194,1777157432379,-1215.0,8.219e-05,2]
[421140195,1777157432389,-749.0,8.219e-05,2]
[421140196,1777157432399,-1215.0,8.219e-05,2]
[421140197,1777157432409,-749.0,8.219e-05,2]
[421140198,1777157432419,-1215.0,8.219e-05,2]
[421140199,1777157432428,-749.0,8.219e-05,2]
[421140200,1777157432438,-749.0,8.219e-05,2]
[421140201,1777157432447,-1215.0,8.219e-05,2]
[421140202,1777157432458,-749.0,8.219e-05,2]
[421140203,1777157432467,-1215.0,8.219e-05,2]
[421140204,1777157432477,-749.0,8.219e-05,2]
[421140205,1777157432487,-1215.0,8.219e-05,2]
[421140206,1777157432497,-749.0,8.219e-05,2]
[421140207,1777157432507,-1215.0,8.219e-05,2]
[421140208,1777157432517,-749.0,8.219e-05,2]
[421140209,1777157432527,-1215.0,8.219e-05,2]
[421140210,1777157432537,-749.0,8.219e-05,2]
[421140211,1777157432546,-1215.0,8.219e-05,2]
[421140212,1777157432556,-749.0,8.219e-05,2]
[421140213,1777157432566,-1215.0,8.219e-05,2]
[421140214,1777157432576,-749.0,8.219e-05,2]
[421140215,1777157432586,-1224.0,8.219e-05,2]
[421140216,1777157432595,-749.26976104,8.219e-05,2]
[421140217,1777157432604,-548.0,8.219e-05,2]
[421140218,1777157432614,-548.0,8.219e-05,2]
[421140219,1777157432623,-548.0,8.219e-05,2]
[421140220,1777157432633,-548.0,8.219e-05,2]
[421140221,1777157432642,-548.0,8.219e-05,2]
[421140222,1777157432652,-548.0,8.219e-05,2]
[421140223,1777157432661,-548.0,8.219e-05,2]
[421140224,1777157432672,-548.0,8.219e-05,2]
[421140225,1777157432682,-548.0,8.219e-05,2]
[421140226,1777157432691,-548.0,8.219e-05,2]
[421140227,1777157432701,-548.0,8.219e-05,2]
[421140228,1777157432710,-548.0,8.219e-05,2]
[421140229,1777157432720,-548.0,8.219e-05,2]
[421140230,1777157432730,-548.0,8.219e-05,2]
[421140231,1777157432739,-548.0,8.219e-05,2]
[421140232,1777157432748,-548.0,8.219e-05,2]
[421140233,1777157432758,-548.0,8.219e-05,2]
[421140234,1777157432767,-548.0,8.219e-05,2]
[421140235,1777157432777,-548.0,8.219e-05,2]
[421140236,1777157432787,-548.0,8.219e-05,2]
[421140237,1777157432796,-548.0,8.219e-05,2]
[421140238,1777157432805,-548.0,8.219e-05,2]
[421140239,1777157432815,-548.0,8.219e-05,2]
[421140240,1777157432825,-548.41903347,8.219e-05,2]
[421140241,1777157432834,-500.0,8.219e-05,2]
[421140242,1777157432843,-500.0,8.22e-05,2]
[421140243,1777157432853,-500.0,8.22e-05,2]
[421140244,1777157432863,-30000.0,8.248e-05,2]
[421140245,1777157432872,-151.0,8.256e-05,2]
[421140246,1777157432882,-483.68,8.26e-05,2]
[421140247,1777157432892,-568.26,8.264e-05,2]
[421140248,1777157432903,-153.27330215,8.312e-05,2]
[421140249,1777157432913,-558.0,8.362e-05,2]
[421140250,1777157432922,-200.0,8.362e-05,2]
[421140251,1777157432932,-712.0,8.362e-05,2]
[421140252,1777157432942,-1054.0,8.362e-05,2]
[421140253,1777157432952,-1137.0,8.362e-05,2]
[421140254,1777157432962,-296.0,8.362e-05,2]
[421140255,1777157432971,-4278.0,8.362e-05,2]
[421140256,1777157432981,-627.0,8.387e-05,2]
[421140257,1777157432991,-692.13,8.425e-05,2]
[421140258,1777157433001,-176.6,8.428e-05,2]
[421140259,1777157433011,-177.0,8.439e-05,2]
[421140260,1777157433022,-284.71352936,8.492e-05,2]
[421140261,1777157433032,-500.0,8.493e-05,2]
[421140262,1777157433042,-227.05,8.504e-05,2]
[421140263,1777157433052,-152.0,8.567e-05,5]
[421140264,1777157433062,-159.0,8.567e-05,5]
[421140265,1777157433072,-383.0,8.649e-05,3]
[421140266,1777157433081,-3531.0,8.679e-05,2]
[421140267,1777157433091,-1048.0,8.679e-05,2]
[421140268,1777157433101,-623.0,8.679e-05,2]
[421140269,1777157433110,-1349.0,8.679e-05,2]
[421140270,1777157433121,-1266.0,8.679e-05,2]
[421140271,1777157433131,-150.0,8.679e-05,2]
[421140272,1777157433141,-1219.0,8.679e-05,2]
[421140273,1777157433151,-416.0,8.679e-05,2]
[421140274,1777157433160,-2475.0,8.679e-05,2]
[421140275,1777157433171,-12907.0917315,8.692e-05,2]
[421140276,1777157433181,-453.29385048,8.693e-05,2]
[421140277,1777157433190,-181.08010149,8.693e-05,2]
[421140278,1777157433200,-151.0,8.697e-05,2]
[421140279,1777157433209,-420.0,8.697e-05,2]
[421140280,1777157433219,-1680.0,8.697e-05,2]
[421140281,1777157433228,-300.0,8.698e-05,2]
[421140282,1777157433238,-2500.0,8.698e-05,2]
[421140283,1777157433248,-2500.0,8.698e-05,2]
[421140284,1777157433258,-250.0,8.698e-05,2]
[421140285,1777157433267,-300.0,8.698e-05,2]
[421140286,1777157433276,-193.0,8.698e-05,2]
[421140287,1777157433286,-692.13,8.699e-05,2]
[421140288,1777157433296,-104310.28697216,8.7e-05,2]
[421140291,1777157438923,-374.68915625,8.248e-05,2]
[421140292,1777157438989,-1383.16954307,8.248e-05,2]
[421140293,1777157439002,-1146.8321734,8.248e-05,2]
[421140294,1777157439015,-284.67244094,8.248e-05,2]
[421140295,1777157439119,-2000.0,8.248e-05,2]
[421140296,1777157439132,-1549.22906836,8.248e-05,2]
[421140297,1777157439142,-11405.18010971,8.7e-05,2]
[421140301,1777157441259,-1286.33966912,8.7e-05,2]
[421140306,1777157443370,-426.5,8.679e-05,2]
[421140312,1777157446063,-1759.0,8.679e-05,2]
[421140313,1777157446379,-1595.5,8.679e-05,2]
[421140314,1777157446388,-33143.34153264,8.7e-05,2]
[421140315,1777157446431,-412.18422973,8.7e-05,2]
[421140316,1777157446443,-2276.97830001,8.7e-05,2]
[421140317,1777157446486,-24443.88822399,8.7e-05,2]
[421140318,1777157446497,-4439.0000001,8.7e-05,2]
[421140343,1777157460005,500.0,7.847e-05,2]
[421140344,1777157492838,4500.01,7.907e-05,2]
[421140345,1777157492865,5000.01,7.907e-05,2]
[421140346,1777157492890,5000.01,7.907e-05,2]
[421140347,1777157492916,5000.01,7.907e-05,2]
[421140348,1777157626504,500.0,7.807e-05,2]
[421140349,1777157645719,364.0,7.807e-05,3]
[421140350,1777157707214,346.0,7.807e-05,3]
[421140351,1777157707348,160.0,7.807e-05,3]
[421140352,1777157766399,329.0,7.807e-05,3]
[421140353,1777157793406,500.0,7.806e-05,2]
[421140354,1777157805746,237.26127448,7.897e-05,2]
[421140355,1777157827001,312.0,7.807e-05,3]
[421140356,1777157878747,2251.74872552,1.31e-05,3]
[421140357,1777157878771,5000.01,1.31e-05,3]
[421140358,1777157878795,5000.01,1.31e-05,3]
[421140359,1777157878818,5000.01,1.31e-05,3]
[421140360,1777157878840,5000.01,1.31e-05,3]
[421140361,1777157878866,5000.01,1.31e-05,3]
[421140362,1777157878890,5000.01,1.31e-05,3]
[421140363,1777157878912,5000.01,1.31e-05,3]
[421140364,1777157878935,5000.01,1.31e-05,3]
[421140365,1777157878958,5000.01,1.31e-05,3]
[421140366,1777157878983,2653.63192712,1.31e-05,3]
[421140367,1777157879008,2653.63192712,1.31e-05,3]
[421140368,1777157879032,2653.63192712,1.31e-05,3]
[421140369,1777157879061,2653.63192712,1.31e-05,3]
[421140370,1777157879086,2653.63192712,1.31e-05,3]
[421140371,1777157879110,2653.63192712,1.31e-05,3]
[421140372,1777157879134,2653.63192712,1.31e-05,3]
[421140373,1777157879158,2653.63192712,1.31e-05,3]
[421140374,1777157879182,2653.63192712,1.31e-05,3]
[421140375,1777157879206,2653.63192712,1.31e-05,3]
[421140376,1777157879243,50208.94592828,1.31e-05,3]
[421140377,1777157887213,297.0,7.807e-05,3]
[421140378,1777157953606,473.2109,7.805e-05,2]
[421140379,1777158008694,295.0,7.805e-05,3]
[421140380,1777158008879,160.0,7.805e-05,3]
[421140381,1777158069520,280.0,7.805e-05,3]
[421140382,1777158089219,2784.16,7.749e-05,2]
[421140383,1777158089524,171.358,7.749e-05,2]
[421140384,1777158128428,266.0,7.805e-05,3]
[421140385,1777158192888,253.0,7.805e-05,3]
[421140386,1777158247677,2011.5091552,7.899e-05,2]
[421140387,1777158248719,240.0,7.805e-05,3]
[421140388,1777158302563,150.0,7.101e-05,2]
[421140389,1777158302630,150.0,7.2e-05,2]
[421140390,1777158302664,150.0,7.299e-05,2]
[421140391,1777158302734,150.0,7.397e-05,2]
[421140392,1777158302809,150.0,7.496e-05,2]
[421140393,1777158302870,150.0,7.595e-05,2]
[421140394,1777158302952,150.0,7.693e-05,2]
[421140395,1777158303018,150.0,7.792e-05,2]
[421140396,1777158303089,150.0,7.89e-05,2]
[421140397,1777158303182,150.0,7.101e-05,2]
[421140398,1777158303246,150.0,7.189e-05,2]
[421140399,1777158303312,150.0,7.277e-05,2]
[421140400,1777158303380,150.0,7.364e-05,2]
[421140401,1777158303457,150.0,7.452e-05,2]
[421140402,1777158303543,150.0,7.627e-05,2]
[421140403,1777158303614,150.0,7.715e-05,2]
[421140404,1777158303682,150.0,7.803e-05,2]
[421140405,1777158303754,150.0,7.89e-05,2]
[421140406,1777158307149,150.0,7.101e-05,2]
[421140407,1777158307194,150.0,7.134e-05,2]
[421140408,1777158307268,150.0,7.167e-05,2]
[421140409,1777158307333,150.0,7.2e-05,2]
[421140410,1777158307401,150.0,7.233e-05,2]
[421140411,1777158307515,150.0,7.266e-05,2]
[421140412,1777158307573,150.0,7.299e-05,2]
[421140413,1777158307615,150.0,7.332e-05,2]
[421140414,1777158307710,150.0,7.364e-05,2]
[421140415,1777158307765,150.0,7.397e-05,2]
[421140416,1777158307828,150.0,7.43e-05,2]
[421140417,1777158307944,150.0,7.463e-05,2]
[421140418,1777158308082,150.0,7.496e-05,2]
[421140419,1777158308113,150.0,7.529e-05,2]
[421140420,1777158308144,150.0,7.562e-05,2]
[421140421,1777158308406,150.0,7.66e-05,2]
[421140422,1777158308460,150.0,7.627e-05,2]
[421140423,1777158308526,150.0,7.693e-05,2]
[421140424,1777158308595,150.0,7.726e-05,2]
[421140425,1777158308674,150.0,7.759e-05,2]
[421140426,1777158308732,150.0,7.792e-05,2]
[421140427,1777158308803,150.0,7.825e-05,2]
[421140428,1777158308881,150.0,7.858e-05,2]
[421140429,1777158308947,150.0,7.89e-05,2]
[421140430,1777158310629,160.0,7.805e-05,3]
[421140431,1777158310695,228.0,7.805e-05,3]
[421140432,1777158313254,150.0,7.54e-05,2]
[421140433,1777158313675,150.0,7.595e-05,2]
[421140434,1777158313719,150.0,7.101e-05,2]
[421140435,1777158313776,150.0,7.154e-05,2]
[421140436,1777158313844,150.0,7.207e-05,2]
[421140437,1777158313917,150.0,7.259e-05,2]
[421140438,1777158313991,150.0,7.312e-05,2]
[421140439,1777158314129,150.0,7.364e-05,2]
[421140440,1777158314163,150.0,7.417e-05,2]
[421140441,1777158314575,150.0,7.47e-05,2]
[421140442,1777158314625,150.0,7.522e-05,2]
[421140443,1777158314670,150.0,7.575e-05,2]
[421140444,1777158314710,150.0,7.627e-05,2]
[421140445,1777158314747,150.0,7.68e-05,2]
[421140446,1777158314786,150.0,7.733e-05,2]
[421140447,1777158314839,150.0,7.838e-05,2]
[421140448,1777158314879,150.0,7.89e-05,2]
[421140449,1777158315067,150.0,7.101e-05,2]
[421140450,1777158315101,150.0,7.397e-05,2]
[421140451,1777158315130,150.0,7.496e-05,2]
[421140452,1777158315169,150.0,7.2e-05,2]
[421140453,1777158315204,150.0,7.595e-05,2]
[421140454,1777158315267,150.0,7.693e-05,2]
[421140455,1777158315336,150.0,7.792e-05,2]
[421140456,1777158315403,150.0,7.89e-05,2]
[421140457,1777158317266,150.0,7.101e-05,2]
[421140458,1777158317330,150.0,7.12e-05,2]
[421140459,1777158317406,150.0,7.139e-05,2]
[421140460,1777158317468,150.0,7.158e-05,2]
[421140461,1777158317546,150.0,7.177e-05,2]
[421140462,1777158317612,150.0,7.195e-05,2]
[421140463,1777158317683,150.0,7.214e-05,2]
[421140464,1777158317713,150.0,7.233e-05,2]
[421140465,1777158317770,150.0,7.252e-05,2]